fUSD/lending_fUSD_20260111
["ID","MTS","AMOUNT","RATE_DAILY","PERIOD"]
[401372097,1768162249471,-334.5472959,0.0001799,2]
[401372098,1768162249481,-642.94,0.0001799,2]
[401372099,1768162249491,-1489.85,0.00017991,2]
[401372100,1768162249501,-166.9455236,0.00017999,2]
[401372101,1768162249511,-500.0,0.00017999,2]
[401372102,1768162249522,-248.89433891,0.00017999,2]
[401372103,1768162249532,-500.0,0.00017999,2]
[401372104,1768162249543,-500.0,0.00017999,2]
[401372105,1768162249552,-430.40644274,0.00017999,2]
[401372106,1768162249563,-300.0,0.00017999,2]
[401372107,1768162249572,-300.0,0.00017999,2]
[401372108,1768162249582,-500.0,0.00017999,2]
[401372109,1768162249592,-500.0,0.00017999,2]
[401372110,1768162249602,-500.0,0.00017999,2]
[401372111,1768162249614,-500.0,0.00017999,2]
[401372112,1768162249624,-500.0,0.00017999,2]
[401372113,1768162249634,-193.74886277,0.00017999,2]
[401372114,1768162249645,-300.0,0.00017999,2]
[401372115,1768162249655,-673.04563665,0.00017999,2]
[401372116,1768162249665,-150.0,0.00018,2]
[401372117,1768162249675,-150.0,0.00018,2]
[401372118,1768162249686,-150.0,0.00018,2]
[401372119,1768162249696,-497.27065485,0.00018,2]
[401372120,1768162249706,-150.0,0.00018,2]
[401372121,1768162249720,-150.0,0.00018,2]
[401372122,1768162249731,-150.0,0.00018,2]
[401372123,1768162249742,-150.0,0.00018,2]
[401372124,1768162249753,-150.0,0.00018,2]
[401372125,1768162249764,-150.0,0.00018,2]
[401372126,1768162249774,-150.0,0.00018,2]
[401372127,1768162249785,-150.0,0.00018,2]
[401372128,1768162249795,-98359.92423746,0.00018,2]
[401372129,1768162249806,-500.0,0.00018,2]
[401372130,1768162249816,-500.0,0.00018,2]
[401372131,1768162249827,-500.0,0.00018,2]
[401372132,1768162249837,-500.0,0.00018,2]
[401372133,1768162249847,-500.0,0.00018,2]
[401372134,1768162249858,-500.0,0.00018,2]
[401372135,1768162249868,-500.0,0.00018,2]
[401372136,1768162249878,-500.0,0.00018,2]
[401372137,1768162249888,-500.0,0.00018,2]
[401372138,1768162249898,-500.0,0.00018,2]
[401372139,1768162249909,-500.0,0.00018,2]
[401372140,1768162249920,-500.0,0.00018,2]
[401372141,1768162249931,-500.0,0.00018,2]
[401372142,1768162249941,-500.0,0.00018,2]
[401372143,1768162249951,-500.0,0.00018,2]
[401372144,1768162249962,-500.0,0.00018,2]
[401372145,1768162249971,-500.0,0.00018,2]
[401372146,1768162249981,-500.0,0.00018,2]
[401372147,1768162249993,-500.0,0.00018,2]
[401372148,1768162250003,-500.0,0.00018,2]
[401372149,1768162250014,-493.4,0.00018,2]
[401372150,1768162250024,-2117102.6111991,0.00018,2]
[401372151,1768162250053,-2112.71807077,0.00018,2]
[401372152,1768162250276,-1922.94324586,0.00018,2]
[401372153,1768162251163,-278.4466426,0.00017736,2]
[401372154,1768162251172,-1022.33744638,0.000179,2]
[401372155,1768162251182,-7956.51590872,0.00018,2]
[401372156,1768162251212,-3692.79000081,0.00018,2]
[401372157,1768162251223,-104001.97488092,0.00018,2]
[401372158,1768162251235,-1938.88672445,0.00018,2]
[401372159,1768162251246,-3859.8,0.00018,2]
[401372160,1768162251265,-1952.19000006,0.00015782,2]
[401372161,1768162251276,-15376.99280507,0.00015782,2]
[401372162,1768162251285,-3463.00719493,0.00018,2]
[401372163,1768162251296,-134839.98575055,0.00018,2]
[401372164,1768162251328,-1257.52491,0.00018,2]
[401372165,1768162251339,-2309.35175414,0.00018,2]
[401372166,1768162381286,300.0,0.00014073,2]
[401372167,1768162391673,14400.0,0.000139,5]
[401372168,1768162402522,1614.0,0.00013974,2]
[401372169,1768162403219,-191.07759653,0.00013974,2]
[401372170,1768162407014,-167.77555432,0.00013974,2]
[401372171,1768162409019,-239.83158984,0.00013974,2]
[401372172,1768162411870,-205.96151972,0.00013974,2]
[401372173,1768162413946,-260.16841016,0.00013974,2]
[401372174,1768162415958,-319.0029748,0.00013974,2]
[401372175,1768162418073,-245.19431187,0.00013974,2]
[401372176,1768162421141,-210.68113283,0.00013974,2]
[401372177,1768162424818,-188.76767996,0.00013974,2]
[401372178,1768162426268,-220.23941475,0.00013974,2]
[401372179,1768162428402,-201.40066064,0.00013974,2]
[401372180,1768162434555,-156.67740367,0.00013974,2]
[401372181,1768162434837,1800.0,0.000139,5]
[401372182,1768162436385,-221.11452198,0.00013974,2]
[401372183,1768162438912,-298.64658488,0.00013974,2]
[401372184,1768162440766,-337.98567243,0.00013974,2]
[401372185,1768162443111,-313.69994669,0.00013974,2]
[401372186,1768162447266,-527.97186034,0.00013974,2]
[401372187,1768162449721,-241.02894289,0.00013904,2]
[401372188,1768162452168,-258.7026759,0.00013904,2]
[401372189,1768162453669,-213.14254782,0.00013904,2]
[401372190,1768162455932,-37.45803739,0.00013904,2]
[401372191,1768162455955,-292.05193882,0.00013974,2]
[401372192,1768162458530,-275.66674072,0.00013974,2]
[401372193,1768162461850,-299.84871669,0.00013974,2]
[401372194,1768162553072,-202.9482599,0.00013974,2]
[401372195,1768162554943,-124.78411139,0.00013974,2]
[401372196,1768162554965,-37.83039171,0.00013974,2]
[401372197,1768162558264,-289.90197958,0.00013974,2]
[401372198,1768162558286,-92.09802042,0.00013974,2]
[401372199,1768162610391,-192.77249302,0.00013913,2]
[401372200,1768162610414,-33.68157832,0.00013944,2]
[401372201,1768162613038,-159.0909147,0.00013944,2]
[401372202,1768162613064,-152.33275684,0.00013974,2]
[401372203,1768162702796,917.1,0.00013728,2]
[401372204,1768162802538,197.83,0.00027397,120]
[401372206,1768162987262,243.55007864,0.00013873,2]
[401372207,1768163006102,323.8,0.00013297,2]
[401372208,1768163007479,-358.43744548,0.00013904,2]
[401372209,1768163012134,-283.74383245,0.00013904,2]
[401372210,1768163014677,-442.57908357,0.00013904,2]
[401372211,1768163018448,-16.2396385,0.00013904,2]
[401372212,1768163018471,-214.11353861,0.00013904,2]
[401372213,1768163020281,-202.90743206,0.00013904,2]
[401372214,1768163023445,-362.63084071,0.00013904,2]
[401372215,1768163025330,-321.34818862,0.00013904,2]
[401372216,1768163025362,-99.3473644,0.00013904,2]
[401372217,1768163029115,-189.3168,0.00013904,2]
[401372218,1768163031230,-224.74559645,0.00013904,2]
[401372219,1768163033534,-193.82804188,0.00013904,2]
[401372220,1768163036292,-223.64851517,0.00013904,2]
[401372221,1768163038372,-152.74964676,0.00013904,2]
[401372222,1768163040596,-17.36403534,0.00013904,2]
[401372223,1768163040619,-282.63596466,0.00013904,2]
[401372224,1768163044598,-255.04792585,0.00013904,2]
[401372225,1768163047292,-162.93062352,0.00013904,2]
[401372226,1768163048788,-155.85892198,0.00013904,2]
[401372227,1768163051038,-178.25568144,0.00013904,2]
[401372228,1768163053387,-66.27088255,0.00013904,2]
[401372229,1768163053410,-183.33084003,0.00013904,2]
[401372230,1768163055483,-218.4146248,0.00013904,2]
[401372231,1768163058849,-233.97048591,0.00013904,2]
[401372232,1768163060467,-465.28404926,0.00013904,2]
[401372233,1768163060489,-147.13686717,0.00013904,2]
[401372234,1768163062539,-344.20958599,0.00013904,2]
[401372235,1768163064280,200.0,0.00013241,2]
[401372236,1768163066219,500.0,0.00013241,2]
[401372237,1768163066261,-190.79785253,0.00013904,2]
[401372238,1768163068988,-218.10476758,0.00013904,2]
[401372239,1768163071732,-200.75092673,0.00013904,2]
[401372240,1768163071759,-51.41774059,0.00013924,2]
[401372241,1768163073696,-173.21574077,0.00013924,2]
[401372242,1768163103408,187.94,0.00027397,120]
[401372243,1768163106862,333.289531,0.00013853,2]
[401372244,1768163116052,-18.91659727,0.00013924,2]
[401372245,1768163116076,-254.26260949,0.00013972,2]
[401372246,1768163120284,-45.73739051,0.00013972,2]
[401372247,1768163120317,-247.51841234,0.00013972,2]
[401372249,1768163132851,-158.26260425,0.00013972,2]
[401372250,1768163137688,-431.31728174,0.00013972,2]
[401372251,1768163150443,-246.64888626,0.00013972,2]
[401372254,1768163180389,-116.25281541,0.00013972,2]
[401372255,1768163180411,-83.71388134,0.00013973,2]
[401372256,1768163182522,-162.93500492,0.00013973,2]
[401372257,1768163182547,-102.52635061,0.00013973,2]
[401372258,1768163185875,-47.47364939,0.00013973,2]
[401372259,1768163185898,-205.41541713,0.00013973,2]
[401372260,1768163242121,-300.0,0.00013973,2]
[401372261,1768163242145,-150.0,0.00013973,2]
[401372262,1768163242166,-300.0,0.00013973,2]
[401372263,1768163242186,-237.73292134,0.00013973,2]
[401372264,1768163248083,-62.26707866,0.00013973,2]
[401372265,1768163248109,-44.58458287,0.00013973,2]
[401372266,1768163248129,-195.0,0.00013973,2]
[401372267,1768163248150,-208.7665,0.00013973,2]
[401372268,1768163248171,-169.68823694,0.00013973,2]
[401372269,1768163248698,16300.0,0.000139,5]
[401372270,1768163268984,5941.68204928,0.00012,2]
[401372275,1768163317739,150.0,0.00013522,2]
[401372276,1768163355130,-300.0,0.00013973,2]
[401372277,1768163355151,-250.0,0.00013973,2]
[401372278,1768163355171,-151.62282096,0.00013973,2]
[401372279,1768163355192,-195.0,0.00013974,2]
[401372280,1768163355214,-665.12488248,0.00013974,2]
[401372281,1768163355241,-355.55770632,0.00013974,2]
[401372282,1768163355264,-13295.47469999,0.00013974,2]
[401372283,1768163355285,-185.63109508,0.00013974,2]
[401372284,1768163355307,-3260.74317583,0.00013974,2]
[401372285,1768163356133,-750.80493951,0.00013974,2]
[401372286,1768163358165,-3269.68288466,0.00013974,2]
[401372287,1768163358185,-2500.0,0.00013974,2]
[401372288,1768163358205,-110.29773001,0.00013974,2]
[401372289,1768163358224,-311.14395061,0.00013979,2]
[401372290,1768163358244,-195.0,0.00013998,2]
[401372291,1768163358264,-5031.14182058,0.00014,2]
[401372292,1768163358282,-500.19471336,0.0001407,2]
[401372293,1768163358301,-500.61421208,0.0001407,2]
[401372294,1768163358324,-500.0,0.0001407,2]
[401372295,1768163358347,-500.0,0.0001407,2]
[401372296,1768163358371,-500.0,0.0001407,2]
[401372297,1768163358403,-500.0,0.0001407,2]
[401372298,1768163358428,-500.0,0.0001407,2]
[401372299,1768163358450,-500.0,0.0001407,2]
[401372300,1768163358472,-500.0,0.0001407,2]
[401372301,1768163358494,-500.0,0.0001407,2]
[401372302,1768163358516,-500.0,0.0001407,2]
[401372303,1768163358539,-500.0,0.0001407,2]
[401372304,1768163358560,-500.0,0.0001407,2]
[401372305,1768163358582,-242.57439855,0.0001407,2]
[401372306,1768163358604,-500.0,0.0001407,2]
[401372307,1768163358627,-500.0,0.0001407,2]
[401372308,1768163358649,-231.7437834,0.0001407,2]
[401372309,1768163358669,-1444.058,0.00014072,2]
[401372310,1768163358693,-500.0,0.00014073,2]
[401372311,1768163358713,-500.0,0.00014073,2]
[401372312,1768163358733,-500.0,0.00014073,2]
[401372313,1768163358753,-500.0,0.00014073,2]
[401372314,1768163358773,-500.0,0.00014073,2]
[401372315,1768163358794,-500.0,0.00014073,2]
[401372316,1768163358816,-500.0,0.00014073,2]
[401372317,1768163358837,-500.0,0.00014073,2]
[401372318,1768163358856,-500.0,0.00014073,2]
[401372319,1768163358876,-500.0,0.00014073,2]
[401372320,1768163358896,-500.0,0.00014073,2]
[401372321,1768163358916,-500.0,0.00014073,2]
[401372322,1768163358936,-500.0,0.00014073,2]
[401372323,1768163358956,-399.2650729,0.00014073,2]
[401372324,1768163358977,-500.0,0.00014073,2]
[401372325,1768163358997,-500.0,0.00014073,2]
[401372326,1768163359017,-1570.36,0.00014073,2]
[401372327,1768163359036,-500.0,0.00014073,2]
[401372328,1768163359056,-500.0,0.00014073,2]
[401372329,1768163359081,-356.46360209,0.00014073,2]
[401372330,1768163359101,-500.0,0.00014073,2]
[401372331,1768163359121,-500.0,0.00014073,2]
[401372332,1768163359142,-500.0,0.00014073,2]
[401372333,1768163359163,-500.0,0.00014073,2]
[401372334,1768163359183,-500.0,0.00014073,2]
[401372335,1768163359204,-511.45493644,0.00014073,2]
[401372336,1768163359223,-500.0,0.00014073,2]
[401372337,1768163359243,-500.0,0.00014073,2]
[401372338,1768163359268,-504.79592497,0.00014073,2]
[401372339,1768163359289,-500.0,0.00014073,2]
[401372340,1768163359732,-500.0,0.00014073,2]
[401372341,1768163359753,-163.52118392,0.00014073,2]
[401372342,1768163359775,-316.09838611,0.00014073,2]
[401372343,1768163359799,-13861.61628032,0.00014074,2]
[401372344,1768163364359,165.07724138,0.00013874,2]
[401372345,1768163367104,-64131.19504372,0.00014074,2]
[401372346,1768163369395,-14924.76014823,0.00014074,2]
[401372347,1768163393233,10000.01,0.00013874,2]
[401372348,1768163393259,8994.9201,0.00013874,2]
[401372349,1768163403214,178.55,0.00027397,120]
[401372371,1768163431817,-165.07724137,0.00013973,2]
[401372372,1768163431827,-300.0,0.00013973,2]
[401372373,1768163431837,-300.0,0.00013973,2]
[401372374,1768163431847,-195.0,0.00013973,2]
[401372375,1768163431857,-330.31176306,0.00013974,2]
[401372376,1768163431867,-13886.14218167,0.00013974,2]
[401372377,1768163431876,-310.50437934,0.00013974,2]
[401372378,1768163431886,-2500.0,0.00013974,2]
[401372379,1768163431896,-1000.0,0.00014074,2]
[401372380,1768163431905,-166.66,0.00014157,2]
[401372381,1768163431915,-150.0,0.00014172,2]
[401372382,1768163431925,-446.21101846,0.00014173,2]
[401372383,1768163431935,-500.0,0.00014173,2]
[401372384,1768163431944,-500.0,0.00014173,2]
[401372385,1768163431954,-500.0,0.00014173,2]
[401372386,1768163431963,-500.0,0.00014173,2]
[401372387,1768163431972,-500.0,0.00014173,2]
[401372388,1768163431982,-500.0,0.00014173,2]
[401372389,1768163431992,-500.0,0.00014173,2]
[401372390,1768163432002,-500.0,0.00014273,2]
[401372391,1768163432012,-500.0,0.00014273,2]
[401372392,1768163432021,-1570.36,0.00014347,2]
[401372393,1768163432032,-500.0,0.00014373,2]
[401372395,1768163432041,-248.89433891,0.00014373,2]
[401372397,1768163432051,-500.0,0.00014373,2]
[401372398,1768163432060,-500.0,0.00014373,2]
[401372400,1768163432070,-500.0,0.00014373,2]
[401372402,1768163432080,-500.0,0.00014373,2]
[401372404,1768163432090,-500.0,0.00014373,2]
[401372407,1768163432099,-500.0,0.00014373,2]
[401372408,1768163432108,-505.19604421,0.00014373,2]
[401372410,1768163432118,-221.12,0.00014393,2]
[401372412,1768163432127,-1101.0,0.00014397,2]
[401372413,1768163432136,-13295.47469993,0.0001441,2]
[401372415,1768163432146,-13886.14218161,0.0001441,2]
[401372417,1768163432155,-8995.69,0.00014521,2]
[401372419,1768163432165,-310.50437934,0.00014535,2]
[401372421,1768163432174,-1570.36,0.00014621,2]
[401372422,1768163432184,-166.66,0.00014625,2]
[401372423,1768163432193,-355.55770627,0.00014628,2]
[401372424,1768163432203,-23328.3004783,0.0001464,2]
[401372425,1768163432217,-13295.47469993,0.00014846,2]
[401372426,1768163432227,-13886.14218161,0.00014846,2]
[401372427,1768163432238,-1570.36,0.00014895,2]
[401372428,1768163432247,-32600.0,0.000149,5]
[401372429,1768163432258,-166.66,0.00015092,2]
[401372430,1768163432269,-310.50437934,0.00015096,2]
[401372431,1768163432280,-1101.0,0.00015154,2]
[401372432,1768163432289,-1570.36,0.00015169,2]
[401372433,1768163432299,-355.55770627,0.00015283,2]
[401372434,1768163432308,-13295.47469993,0.00015283,2]
[401372435,1768163432318,-13886.14218161,0.00015283,2]
[401372436,1768163432327,-255.0,0.00015292,2]
[401372437,1768163432337,-500.0,0.00015309,2]
[401372438,1768163432350,-420.0,0.00015309,2]
[401372439,1768163432360,-420.0,0.00015309,2]
[401372440,1768163432370,-299.99,0.0001531,2]
[401372441,1768163432379,-999.99,0.0001531,2]
[401372442,1768163432390,-150.99,0.0001531,2]
[401372443,1768163432399,-9999.99,0.0001531,2]
[401372444,1768163432408,-156793.05160455,0.0001532,2]
[401372445,1768163432419,-3175.55161725,0.00015366,2]
[401372446,1768163432429,-195.0,0.00015369,2]
[401372447,1768163432438,-600.0,0.00015369,2]
[401372448,1768163432447,-415.77348128,0.00015369,2]
[401372449,1768163432457,-500.0,0.00015369,2]
[401372450,1768163432467,-300.0,0.0001537,2]
[401372451,1768163432476,-189.50825211,0.0001537,2]
[401372452,1768163432486,-300.0,0.0001537,2]
[401372453,1768163432495,-600.0,0.0001537,2]
[401372454,1768163432505,-250.0,0.0001537,2]
[401372455,1768163432515,-195.0,0.0001537,2]
[401372456,1768163432524,-195.0,0.0001537,2]
[401372457,1768163432533,-195.0,0.0001537,2]
[401372458,1768163432543,-600.0,0.0001537,2]
[401372459,1768163432552,-250.0,0.0001537,2]
[401372460,1768163432562,-193.53877001,0.0001537,2]
[401372461,1768163432572,-300.0,0.0001537,2]
[401372462,1768163432581,-1862.70122449,0.00015371,2]
[401372463,1768163432591,-1570.36,0.00015443,2]
[401372464,1768163432600,-1000.0,0.00015464,2]
[401372465,1768163432610,-151.0,0.00015514,2]
[401372466,1768163432619,-158.0,0.00015514,2]
[401372467,1768163432629,-151.0,0.00015514,2]
[401372468,1768163432638,-151.0,0.00015514,2]
[401372469,1768163432648,-436.65636157,0.0001552,2]
[401372470,1768163432658,-166.66,0.00015559,2]
[401372471,1768163432668,-151.0,0.00015608,2]
[401372472,1768163432677,-151.0,0.00015608,2]
[401372473,1768163432687,-29220.0,0.00015637,2]
[401372474,1768163432697,-500.0,0.00015643,2]
[401372475,1768163432706,-151.0,0.00015644,2]
[401372476,1768163432716,-151.0,0.00015644,2]
[401372477,1768163432725,-310.50437934,0.00015657,2]
[401372478,1768163432735,-151.0,0.00015657,2]
[401372479,1768163432744,-151.75,0.00015658,2]
[401372480,1768163432758,-151.0,0.00015659,2]
[401372481,1768163432768,-151.0,0.00015659,2]
[401372482,1768163432778,-151.0,0.00015664,2]
[401372483,1768163432788,-1570.36,0.00015717,2]
[401372484,1768163432798,-13295.47469993,0.00015719,2]
[401372485,1768163432808,-13886.14218161,0.00015719,2]
[401372486,1768163432818,-2042.80699116,0.00015807,2]
[401372487,1768163432828,-500.0,0.00015899,2]
[401372488,1768163432838,-500.0,0.00015899,2]
[401372489,1768163432850,-500.0,0.00015917,2]
[401372490,1768163432861,-1000.0,0.00015918,2]
[401372491,1768163432871,-355.55770627,0.00015937,2]
[401372492,1768163432881,-150.0,0.00015952,2]
[401372493,1768163432891,-1101.0,0.00015952,2]
[401372494,1768163432901,-1570.36,0.00015991,2]
[401372495,1768163432911,-23777.71478629,0.00016,2]
[401372496,1768163432921,-34709.11950272,0.00016,2]
[401372497,1768163432954,-3483.36471073,0.00016,2]
[401372498,1768163432967,-609.8984744,0.00016,2]
[401372499,1768163433697,-2001.39991148,0.00016,2]
[401372500,1768163433756,-871.91757517,0.00016,2]
[401372501,1768163433767,-1570.57116541,0.00016,2]
[401372502,1768163433786,-500.0,0.00016,2]
[401372506,1768163437835,-500.0,0.00014409,2]
[401372507,1768163437859,-193.61937762,0.00014409,2]
[401372508,1768163437881,-221.26887027,0.00015282,2]
[401372509,1768163437906,-27.31175211,0.00016,2]
[401372510,1768163437944,-92619.24145759,0.00016,2]
[401372511,1768163437971,-16255.95491316,0.00016,2]
[401372512,1768163437994,-410.7399995,0.00016,2]
[401372513,1768163438007,-651.74569592,0.00016,2]
[401372514,1768163438019,-2642.83314708,0.00016,2]
[401372515,1768163438032,-45205.99999987,0.00016,2]
[401372693,1768163439805,-3436.85276673,0.00016,2]
[401372707,1768163439971,-21803.44041158,0.00016,2]
[401372713,1768163440079,-23483.37003763,0.00016,2]
[401372715,1768163440088,-211210.73084052,0.00016,4]
[401372718,1768163440098,-151.0,0.00016024,2]
[401372719,1768163440108,-151.0,0.00016024,2]
[401372721,1768163440117,-166.66,0.00016027,2]
[401372724,1768163440127,-434.26891446,0.00016066,2]
[401372726,1768163440136,-1413.99,0.000161,2]
[401372727,1768163440146,-13295.47469993,0.00016155,2]
[401372730,1768163440155,-13886.14218161,0.00016155,2]
[401372731,1768163440164,-158.55612686,0.00016191,2]
[401372733,1768163440174,-150.0,0.000162,2]
[401372736,1768163440183,-150.0,0.000162,2]
[401372738,1768163440193,-150.0,0.000162,2]
[401372740,1768163440202,-150.0,0.000162,2]
[401372742,1768163440212,-150.0,0.000162,2]
[401372744,1768163440221,-150.0,0.000162,2]
[401372746,1768163440230,-150.0,0.000162,2]
[401372748,1768163440239,-150.0,0.000162,2]
[401372750,1768163440248,-150.0,0.000162,2]
[401372752,1768163440258,-150.0,0.000162,2]
[401372754,1768163440268,-150.0,0.000162,2]
[401372756,1768163440277,-150.0,0.000162,2]
[401372758,1768163440286,-501.77065485,0.000162,2]
[401372760,1768163440295,-150.0,0.000162,2]
[401372762,1768163440305,-150.0,0.000162,2]
[401372764,1768163440314,-5000.00533254,0.000162,5]
[401372766,1768163440323,-310.50437934,0.00016217,2]
[401372768,1768163440332,-501.77065485,0.00016218,2]
[401372770,1768163440343,-501.77065485,0.00016236,2]
[401372772,1768163440353,-501.77065485,0.00016255,2]
[401372774,1768163440362,-1570.36,0.00016265,2]
[401372776,1768163440371,-501.77065485,0.00016273,2]
[401372778,1768163440380,-501.77065485,0.00016291,2]
[401372780,1768163440391,-501.77065485,0.00016309,2]
[401372782,1768163440399,-150.0,0.0001632,2]
[401372784,1768163440409,-501.77065485,0.00016327,2]
[401372786,1768163440421,-150.0,0.00016338,2]
[401372788,1768163440431,-150.0,0.00016338,2]
[401372789,1768163440440,-150.0,0.00016338,2]
[401372792,1768163440450,-200.0,0.0001634,2]
[401372794,1768163440459,-501.77065485,0.00016345,2]
[401372796,1768163440469,-501.77065485,0.00016364,2]
[401372798,1768163440478,-150.0,0.0001638,2]
[401372800,1768163440488,-501.77065485,0.00016382,2]
[401372802,1768163440498,-150.0,0.000164,2]
[401372804,1768163440507,-501.77065485,0.000164,2]
[401372806,1768163440516,-501.77065485,0.00016418,2]
[401372808,1768163440525,-501.77065485,0.00016436,2]
[401372810,1768163440534,-500.0,0.00016437,2]
[401372812,1768163440543,-386.65632401,0.00016437,2]
[401372814,1768163440552,-265.78504267,0.00016438,2]
[401372816,1768163440562,-226.62,0.00016438,2]
[401372818,1768163440571,-600.0,0.00016438,2]
[401372820,1768163440580,-888.0,0.00016438,2]
[401372822,1768163440589,-800.0,0.00016438,2]
[401372824,1768163440598,-188.46718757,0.00016438,2]
[401372826,1768163440607,-150.0,0.0001644,2]
[401372828,1768163440618,-164.95,0.0001644,2]
[401372830,1768163440627,-501.77065485,0.00016455,2]
[401372832,1768163440636,-664.28,0.00016455,2]
[401372834,1768163440646,-150.0,0.00016457,2]
[401372836,1768163440656,-501.77065485,0.00016473,2]
[401372838,1768163440665,-150.0,0.00016477,2]
[401372840,1768163440674,-150.0,0.00016477,2]
[401372842,1768163440683,-150.0,0.00016477,2]
[401372844,1768163440693,-501.77065485,0.00016491,2]
[401372846,1768163440702,-166.66,0.00016494,2]
[401372848,1768163440712,-433.0,0.00016496,2]
[401372850,1768163440722,-150.0,0.000165,2]
[401372852,1768163440731,-501.77065485,0.00016509,2]
[401372854,1768163440740,-1000.0,0.00016515,2]
[401372856,1768163440749,-501.77065485,0.00016527,2]
[401372858,1768163440758,-1570.36,0.00016539,2]
[401372860,1768163440767,-501.77065485,0.00016545,2]
[401372862,1768163440777,-150.0,0.0001656,2]
[401372864,1768163440786,-150.0,0.0001656,2]
[401372866,1768163440795,-501.77065485,0.00016564,2]
[401372868,1768163440804,-501.77065485,0.00016582,2]
[401372870,1768163440814,-200.0,0.00016583,2]
[401372872,1768163440824,-355.55770627,0.00016591,2]
[401372874,1768163440834,-13295.47469993,0.00016591,2]
[401372876,1768163440844,-13886.14218161,0.00016591,2]
[401372878,1768163440854,-150.0,0.000166,2]
[401372880,1768163440863,-501.77065485,0.000166,2]
[401372882,1768163440873,-359.70734215,0.000166,2]
[401372884,1768163440883,-150.0,0.00016615,2]
[401372886,1768163440893,-150.0,0.00016615,2]
[401372888,1768163440902,-150.0,0.00016615,2]
[401372890,1768163440911,-501.77065485,0.00016618,2]
[401372892,1768163440921,-500.0,0.00016629,2]
[401372895,1768163440931,-620.0,0.00016629,2]
[401372897,1768163440941,-1000.0,0.00016629,2]
[401372898,1768163440950,-500.0,0.00016629,2]
[401372901,1768163440959,-1000.0,0.00016629,2]
[401372902,1768163440969,-1000.0,0.00016629,2]
[401372904,1768163440977,-500.0,0.00016629,2]
[401372906,1768163440986,-1000.0,0.00016629,2]
[401372908,1768163440995,-500.0,0.00016629,2]
[401372910,1768163441005,-1000.0,0.00016629,2]
[401372912,1768163441014,-500.0,0.00016629,2]
[401372914,1768163441023,-1000.0,0.00016629,2]
[401372916,1768163441032,-260.89005731,0.00016629,2]
[401372918,1768163441041,-238.92822807,0.00016629,2]
[401372920,1768163441050,-1000.0,0.00016629,2]
[401372922,1768163441059,-1000.0,0.00016629,2]
[401372924,1768163441069,-1000.0,0.00016629,2]
[401372926,1768163441077,-1000.0,0.00016629,2]
[401372928,1768163441087,-1000.0,0.00016629,2]
[401372930,1768163441096,-1000.0,0.00016629,2]
[401372932,1768163441105,-578.20924308,0.00016629,2]
[401372934,1768163441114,-250.0,0.00016629,2]
[401372935,1768163441124,-250.0,0.00016629,2]
[401372937,1768163441133,-250.0,0.00016629,2]
[401372939,1768163441143,-250.0,0.00016629,2]
[401372940,1768163441152,-250.0,0.00016629,2]
[401372941,1768163441161,-250.0,0.00016629,2]
[401372943,1768163441170,-998.0,0.00016629,2]
[401372945,1768163441179,-250.0,0.00016629,2]
[401372947,1768163441188,-250.0,0.00016629,2]
[401372949,1768163441197,-250.0,0.00016629,2]
[401372951,1768163441207,-250.0,0.00016629,2]
[401372953,1768163441215,-250.0,0.00016629,2]
[401372955,1768163441225,-250.0,0.00016629,2]
[401372957,1768163441234,-553.64373807,0.00016629,2]